{"text_format":"1","workbook":"xlsx","n_sheets":2,"sheets":["Аркуш1","Опис Проекту"],"not_rendered":{"charts":0,"images":66,"macros":1,"external_links":1,"defined_names":16,"comments":1,"pivot_tables":0},"unopened":[],"bounds":{"document_bytes":16777216,"sheet_cells":100000,"rows_first":2000,"rows_last":500,"rows_between":2000,"halvings":0,"cell_chars":16384,"cell_head_chars":4096},"cells_cut":0,"cells_raw":0,"read":"whole","date_system":"1900"}

{"sheet":"Аркуш1","index":0,"n_rows":6,"n_cols":2,"rows_kept":6,"cut":false,"hidden":false,"merged":[[5,1,9,8]]}
[]
[]
[]
[null,"Шановні проектувальникі та представники ОСББ,"]
[]
[null,"Це є тестова версія файлу для заповнення Чек-листа. Файл знаходиться у дослідній експлуатації. Якщо ви маєте зауваження або пропозиції, будь ласка, напишіть нам: info@eefund.org.ua"]

{"sheet":"Опис Проекту","index":1,"n_rows":455,"n_cols":58,"rows_kept":455,"cut":false,"hidden":false,"merged":[[419,4,419,26],[419,27,419,29],[419,30,419,41],[416,4,416,26],[416,27,416,29],[416,30,416,41],[417,4,417,26],[417,27,417,29],[417,30,417,41],[418,4,418,26],[418,27,418,29],[418,30,418,41],[408,4,408,41],[410,4,410,41],[412,4,412,26],[412,27,412,29],[412,30,412,41],[413,4,413,26],[413,27,413,29],[413,30,413,41],[405,4,405,26],[405,27,405,29],[405,30,405,41],[406,4,406,26],[406,27,406,29],[406,30,406,41],[407,4,407,26],[407,27,407,29],[407,30,407,41],[411,4,411,41],[399,4,399,26],[399,27,399,29],[399,30,399,41],[400,4,400,26],[400,27,400,29],[400,30,400,41],[401,4,401,41],[403,4,403,41],[404,4,404,26],[404,27,404,29],[404,30,404,41],[393,4,393,26],[393,27,393,29],[393,30,393,41],[394,4,394,41],[396,4,396,41],[397,4,397,26],[397,27,397,29],[397,30,397,41],[398,4,398,26],[398,27,398,29],[398,30,398,41],[391,4,391,26],[391,27,391,29],[391,30,391,41],[390,4,390,26],[390,27,390,29],[390,30,390,41],[392,4,392,26],[392,27,392,29],[392,30,392,41],[384,4,384,26],[384,27,384,29],[384,30,384,41],[385,4,385,26],[385,27,385,29],[385,30,385,41],[386,4,386,41],[388,4,388,41],[389,4,389,26],[389,27,389,29],[389,30,389,41],[381,4,381,26],[381,27,381,29],[381,30,381,41],[382,4,382,26],[382,27,382,29],[382,30,382,41],[383,4,383,26],[383,27,383,29],[383,30,383,41],[454,32,454,38],[453,32,453,38],[452,4,452,38],[448,32,448,38],[447,32,447,38],[446,4,446,41],[443,4,443,41],[359,4,359,26],[359,27,359,29],[359,30,359,41],[360,4,360,26],[360,27,360,29],[360,30,360,41],[367,4,367,26],[367,27,367,29],[367,30,367,41],[368,4,368,26],[368,27,368,29],[368,30,368,41],[371,4,371,41],[372,4,372,26],[372,27,372,29],[372,30,372,41],[373,4,373,26],[372,46,377,67],[414,46,421,67],[422,46,423,67],[424,46,425,67],[357,4,357,41],[358,4,358,41],[362,4,362,41],[369,4,369,41],[363,4,363,26],[363,27,363,29],[363,30,363,41],[364,4,364,26],[364,27,364,29],[364,30,364,41],[373,27,373,29],[373,30,373,41],[376,4,376,26],[376,27,376,29],[376,30,376,41],[377,4,377,26],[377,27,377,29],[377,30,377,41],[378,4,378,41],[380,4,380,41],[353,4,353,26],[353,27,353,29],[353,30,353,41],[354,4,354,26],[354,27,354,29],[354,30,354,41],[355,4,355,41],[361,46,362,67],[369,46,371,67],[365,4,365,26],[365,27,365,29],[365,30,365,41],[366,4,366,26],[366,27,366,29],[366,30,366,41],[350,4,350,26],[350,27,350,29],[350,30,350,41],[351,4,351,26],[351,27,351,29],[351,30,351,41],[352,4,352,26],[352,27,352,29],[352,30,352,41],[345,4,345,26],[345,27,345,29],[345,30,345,41],[346,4,346,41],[343,4,343,26],[343,27,343,29],[343,30,343,41],[348,4,348,41],[349,4,349,26],[349,27,349,29],[349,30,349,41],[339,4,339,41],[341,4,341,41],[342,4,342,26],[342,27,342,29],[342,30,342,41],[344,4,344,26],[344,27,344,29],[344,30,344,41],[336,4,336,26],[336,27,336,29],[336,30,336,41],[337,4,337,26],[337,27,337,29],[337,30,337,41],[338,4,338,26],[338,27,338,29],[338,30,338,41],[332,4,332,41],[333,4,333,26],[333,27,333,29],[333,30,333,41],[334,4,334,26],[334,27,334,29],[334,30,334,41],[335,4,335,26],[335,27,335,29],[335,30,335,41],[329,4,329,26],[329,27,329,29],[329,30,329,41],[330,4,330,41],[326,4,326,26],[326,27,326,29],[326,30,326,41],[327,4,327,26],[327,27,327,29],[327,30,327,41],[328,4,328,26],[328,27,328,29],[328,30,328,41],[320,4,320,26],[320,27,320,29],[320,30,320,41],[321,4,321,41],[323,4,323,41],[324,4,324,26],[324,27,324,29],[324,30,324,41],[325,4,325,26],[325,27,325,29],[325,30,325,41],[317,4,317,26],[317,27,317,29],[317,30,317,41],[315,4,315,41],[318,4,318,26],[318,27,318,29],[318,30,318,41],[319,4,319,26],[319,27,319,29],[319,30,319,41],[314,4,314,26],[314,27,314,29],[314,30,314,41],[316,4,316,26],[316,27,316,29],[316,30,316,41],[308,4,308,26],[308,27,308,29],[308,30,308,41],[309,4,309,26],[309,27,309,29],[309,30,309,41],[310,4,310,41],[312,4,312,41],[313,4,313,26],[313,27,313,29],[313,30,313,41],[305,4,305,26],[305,27,305,29],[305,30,305,41],[307,4,307,26],[307,27,307,29],[307,30,307,41],[306,4,306,26],[306,27,306,29],[306,30,306,41],[302,4,302,26],[302,27,302,29],[302,30,302,41],[303,4,303,26],[303,27,303,29],[303,30,303,41],[304,4,304,26],[304,27,304,29],[304,30,304,41],[292,4,292,26],[292,27,292,29],[292,30,292,41],[294,4,294,26],[199,4,199,26],[199,27,199,29],[200,4,200,41],[301,4,301,26],[301,27,301,29],[301,30,301,41],[298,27,298,29],[298,30,298,41],[299,4,299,26],[299,27,299,29],[299,30,299,41],[297,4,297,26],[297,27,297,29],[297,30,297,41],[293,4,293,26],[293,27,293,29],[293,30,293,41],[288,4,288,26],[283,27,283,33],[291,4,291,26],[289,4,289,41],[287,4,287,41],[183,4,186,6],[183,7,186,28],[180,29,182,41],[143,29,144,41],[145,29,146,41],[147,29,149,41],[150,29,153,41],[154,29,156,41],[157,29,159,41],[160,29,161,41],[162,29,164,41],[168,29,170,41],[187,29,189,41],[195,4,196,6],[195,7,196,28],[190,4,192,6],[190,7,192,28],[279,27,279,29],[291,27,291,29],[284,30,284,41],[285,30,285,41],[286,30,286,41],[288,30,288,41],[291,30,291,41],[284,27,284,29],[285,27,285,29],[286,27,286,29],[288,27,288,29],[79,7,81,17],[79,18,81,22],[79,23,81,27],[140,29,142,41],[114,7,116,17],[117,7,122,17],[117,18,122,22],[117,23,122,27],[90,4,91,41],[92,4,96,6],[92,7,96,17],[92,18,96,22],[92,23,96,27],[97,7,100,17],[107,7,110,17],[107,18,110,22],[107,23,110,27],[111,7,113,17],[111,18,113,22],[84,7,89,17],[84,18,89,22],[84,23,89,27],[114,18,116,22],[140,4,142,6],[140,7,142,28],[143,7,144,28],[143,4,144,6],[114,28,116,41],[117,28,122,41],[117,4,122,6],[114,4,116,6],[123,4,133,41],[178,29,179,41],[178,4,179,6],[178,7,179,28],[150,4,153,6],[150,7,153,28],[157,7,159,28],[154,4,156,6],[154,7,156,28],[157,4,159,6],[145,4,146,6],[145,7,146,28],[147,7,149,28],[147,4,149,6],[160,7,161,28],[162,4,164,6],[180,4,182,6],[160,4,161,6],[171,29,172,41],[168,7,170,28],[171,4,172,6],[171,7,172,28],[180,7,182,28],[173,4,174,6],[173,7,174,28],[175,29,177,41],[162,7,164,28],[168,4,170,6],[175,4,177,6],[175,7,177,28],[421,4,421,30],[438,23,440,29],[438,30,440,41],[431,4,431,6],[431,7,431,22],[429,30,430,41],[431,23,431,29],[431,30,431,41],[438,4,440,6],[438,7,440,22],[429,4,430,6],[429,7,430,22],[429,23,430,29],[14,0,15,43],[10,0,13,43],[97,4,100,6],[134,4,137,41],[432,4,433,6],[432,7,433,22],[432,23,433,29],[432,30,433,41],[422,30,426,41],[422,23,426,29],[60,4,60,41],[17,0,18,43],[19,0,20,43],[21,0,22,43],[34,1,35,42],[58,0,58,43],[29,1,30,42],[31,1,33,42],[23,0,24,43],[61,4,63,41],[74,4,75,41],[66,4,73,6],[66,7,73,17],[66,18,73,22],[453,4,453,30],[454,4,455,30],[448,4,449,30],[76,28,78,41],[79,28,81,41],[84,28,89,41],[92,28,96,41],[97,28,100,41],[101,28,104,41],[105,28,106,41],[107,28,110,41],[111,28,113,41],[82,4,83,41],[84,4,89,6],[79,4,81,6],[97,18,100,22],[97,23,100,27],[441,4,442,6],[441,7,442,22],[441,23,442,29],[441,30,442,41],[434,4,435,6],[434,7,435,22],[434,23,435,29],[66,23,73,27],[66,28,73,41],[76,4,78,6],[76,7,78,17],[76,18,78,22],[76,23,78,27],[447,4,447,30],[434,30,435,41],[436,4,437,6],[436,7,437,22],[436,23,437,29],[436,30,437,41],[422,4,426,6],[422,7,426,22],[427,4,428,6],[427,7,428,22],[427,23,428,29],[427,30,428,41],[111,23,113,27],[173,29,174,41],[101,4,104,6],[101,7,104,17],[101,18,104,22],[101,23,104,27],[105,7,106,17],[111,4,113,6],[107,4,110,6],[114,23,116,27],[105,18,106,22],[105,23,106,27],[105,4,106,6],[209,27,209,29],[209,30,209,41],[203,4,203,26],[203,27,203,29],[203,30,203,41],[183,29,186,41],[201,4,201,26],[201,27,201,29],[201,30,201,41],[202,4,202,26],[202,27,202,29],[202,30,202,41],[206,4,206,41],[199,30,199,41],[193,4,194,6],[193,7,194,28],[190,29,192,41],[193,29,194,41],[195,29,196,41],[187,4,189,6],[187,7,189,28],[218,4,218,41],[220,4,220,41],[221,4,221,26],[221,27,221,29],[221,30,221,41],[225,4,225,41],[227,4,227,41],[228,4,228,26],[228,27,228,29],[228,30,228,41],[222,4,222,26],[222,27,222,29],[222,30,222,41],[223,4,223,26],[223,27,223,29],[223,30,223,41],[253,4,253,41],[252,4,252,26],[252,27,252,29],[252,30,252,41],[233,4,233,26],[233,27,233,29],[233,30,233,41],[237,4,237,41],[239,4,239,41],[240,4,240,26],[240,27,240,29],[240,30,240,41],[241,4,241,26],[241,27,241,29],[241,30,241,41],[235,4,235,26],[235,27,235,29],[235,30,235,41],[242,4,242,26],[242,27,242,29],[242,30,242,41],[243,4,243,26],[243,27,243,29],[243,30,243,41],[216,4,216,26],[216,27,216,29],[216,30,216,41],[204,4,204,26],[204,27,204,29],[204,30,204,41],[210,4,210,20],[211,4,211,20],[212,4,212,20],[213,4,213,20],[214,4,214,20],[210,21,210,41],[211,21,211,41],[212,21,212,41],[213,21,213,41],[214,21,214,41],[205,4,205,26],[205,27,205,29],[205,30,205,41],[215,4,215,26],[215,27,215,29],[215,30,215,41],[208,4,208,41],[209,4,209,26],[217,4,217,26],[217,27,217,29],[217,30,217,41],[224,4,224,26],[224,27,224,29],[224,30,224,41],[236,4,236,26],[236,27,236,29],[236,30,236,41],[232,4,232,26],[232,27,232,29],[232,30,232,41],[234,4,234,26],[234,27,234,29],[234,30,234,41],[229,4,229,26],[229,27,229,29],[229,30,229,41],[230,4,230,26],[230,27,230,29],[230,30,230,41],[231,4,231,26],[231,27,231,29],[231,30,231,41],[244,4,244,26],[244,27,244,29],[244,30,244,41],[250,4,250,26],[250,27,250,29],[250,30,250,41],[251,4,251,26],[251,27,251,29],[251,30,251,41],[245,4,245,41],[247,4,247,41],[248,4,248,26],[248,27,248,29],[248,30,248,41],[249,4,249,26],[249,27,249,29],[249,30,249,41],[262,30,262,41],[263,30,263,41],[264,30,264,41],[265,30,265,41],[266,30,266,41],[255,4,255,41],[257,4,257,26],[258,4,258,26],[257,27,257,29],[258,27,258,29],[257,30,257,41],[258,30,258,41],[259,4,259,26],[259,27,259,29],[259,30,259,41],[256,4,256,41],[260,4,260,26],[260,27,260,29],[260,30,260,41],[261,4,261,26],[261,27,261,29],[261,30,261,41],[267,4,267,26],[268,4,268,26],[269,4,269,26],[270,4,270,26],[271,4,271,26],[272,4,272,26],[262,27,262,29],[263,27,263,29],[264,27,264,29],[265,27,265,29],[266,27,266,29],[267,27,267,29],[268,27,268,29],[269,27,269,29],[270,27,270,29],[271,27,271,29],[272,27,272,29],[262,4,262,26],[263,4,263,26],[264,4,264,26],[265,4,265,26],[266,4,266,26],[273,4,273,26],[274,4,274,26],[275,4,275,26],[276,4,276,26],[279,4,279,26],[283,4,283,26],[284,4,284,26],[285,4,285,26],[286,4,286,26],[281,4,281,35],[280,4,280,35],[273,27,273,29],[274,27,274,29],[275,27,275,29],[276,27,276,29],[276,30,276,41],[279,30,279,41],[280,36,280,41],[281,36,281,41],[282,4,282,35],[282,36,282,41],[277,4,277,26],[277,27,277,29],[277,30,277,41],[267,30,267,41],[268,30,268,41],[269,30,269,41],[270,30,270,41],[271,30,271,41],[272,30,272,41],[273,30,273,41],[274,30,274,41],[275,30,275,41],[374,4,374,26],[374,27,374,29],[374,30,374,41],[375,4,375,26],[375,27,375,29],[375,30,375,41],[278,4,278,26],[278,27,278,29],[278,30,278,41],[290,4,290,12],[290,13,290,41],[296,4,296,26],[296,27,296,29],[296,30,296,41],[300,4,300,26],[300,27,300,29],[300,30,300,41],[283,34,283,41],[294,27,294,29],[294,30,294,41],[295,4,295,26],[295,27,295,29],[295,30,295,41],[298,4,298,26]]}
[null,null,null,null,null,null,null,null,null,null,null,null,null,null,null,null,null,null,null,null,null,null,null,null,null,null,null,null,null,null,null,null,null,null,null,null,null,null,null,null,null,null,null,null,null,null,null,null,null,null,null,null,null,"TAK"]
[null,null,null,null,null,null,null,null,null,null,null,null,null,null,null,null,null,null,null,null,null,null,null,null,null,null,null,null,null,null,null,null,null,null,null,null,null,null,null,null,null,null,null,null,null,null,null,null,null,null,null,{"$f":"IF(AX4=\"А\",TRUE,FALSE)","v":false},"А","HI"]
[null,null,null,null,null,null,null,null,null,null,null,null,null,null,null,null,null,null,null,null,null,null,null,null,null,null,null,null,null,null,null,null,null,null,null,null,null,null,null,null,null,null,null,null,null,null,null,null,"Возвращает значение списка",null,null,null,"Б"]
[null,null,null,null,null,null,null,null,null,null,null,null,null,null,null,null,null,null,null,null,null,null,null,null,null,null,null,null,null,null,null,null,null,null,null,null,null,null,null,null,null,null,null,null,null,"А",null,null,null,"Б",null,{"$f":"IF(AX6=\"А\",TRUE,FALSE)","v":false},"Інженер-проектувальник"]
[null,null,null,null,null,null,null,null,null,null,null,null,null,null,null,null,null,null,null,null,null,null,null,null,null,null,null,null,null,null,null,null,null,null,null,null,null,null,null,null,null,null,null,null,null,"Б",null,null,null,null,null,null,"Інженер-проектувальник"]
[]
[]
[]
[]
[]
["ЧЕК ЛИСТ САМОПЕРЕВІРКИ ПРОЕКТУВАЛЬНИКІВ"]
[]
[]
[]
[]
[]
[]
[{"$f":"IF(AZ2=TRUE,\"У ВІДПОВІДНОСТІ ДО ПАКЕТУ ЗАХОДІВ ''А''\",\"У ВІДПОВІДНОСТІ ДО ПАКЕТУ ЗАХОДІВ ''Б''\")","v":"У ВІДПОВІДНОСТІ ДО ПАКЕТУ ЗАХОДІВ ''Б''"}]
[]
["ПРОГРАМИ ПІДТРИМКИ ЕНЕРГОМОДЕРНІЗАЦІЇ"]
[]
["БАГАТОКВАРТИРНИХ БУДИНКІВ"]
[]
["«ЕНЕРГОДІМ»"]
[]
[]
[]
[]
[]
[null,"Об’єднання співвласників багатоквартирного будинку: "]
[]
[null,"ОСББ \"______________\", ____________________________"]
["___________________________________________________________________"]
[]
[null,"(Найменування ОСББ, адреса будинку)"]
[]
[]
[]
[]
[]
[]
[]
[]
[]
[]
[]
[]
[]
[]
[]
[]
[]
[]
[]
[]
[]
[]
[]
[]
[]
[null,null,null,null,{"$f":"IF(AZ2=TRUE,\"1. ПЕРЕЛІК ЗАПРОЕКТОВАНИХ ЕНЕРГОЕФЕКТИВНИХ ЗАХОДІВ ДО ПАКЕТУ ЗАХОДІВ “[А]”*\",\"1. ПЕРЕЛІК ЗАПРОЕКТОВАНИХ ЕНЕРГОЕФЕКТИВНИХ ЗАХОДІВ ДО ПАКЕТУ ЗАХОДІВ “[Б]”*\")","v":"1. ПЕРЕЛІК ЗАПРОЕКТОВАНИХ ЕНЕРГОЕФЕКТИВНИХ ЗАХОДІВ ДО ПАКЕТУ ЗАХОДІВ “[Б]”*"}]
[null,null,null,null,"У даному розділі для кожного заходу слід зробити відповідні позначки щодо його подальшого впровадження. Усі коментарі, що пояснюють суть заходів, обраних для впровадження, слід подавати у розділі 2. Опис підствави виключення заходу обрати з випадаючого списку."]
[]
[]
[]
[null,null,null,null,"4.1. Обов'язкові заходи",null,null,null,null,null,null,null,null,null,null,null,null,null,null,null,null,null,null,null,null,null,null,null,null,null,null,null,null,null,null,null,null,null,null,null,null,null,null,null,null,null,null,null,null,null,null,null,null,null,null,null,"ТАК"]
[null,null,null,null,"№",null,null,"Назва заходу",null,null,null,null,null,null,null,null,null,null,"Рішення** про впровадження заходу (ТАК/НІ)",null,null,null,null,"Чи виконана допустима підстава виключення заходів з переліку обов'язкових (ТАК/НІ)",null,null,null,null,"Опис підстави виключення заходу\n(оберіть з випадаючого списку)",null,null,null,null,null,null,null,null,null,null,null,null,null,null,null,null,null,null,null,null,null,null,null,null,null,null,null,"НІ"]
[]
[]
[]
[]
[]
[]
[]
[null,null,null,null,"Для будинків із централізованим опаленням:"]
[]
[null,null,null,null,"4.1.1",null,null,"Встановлення вузла комерційного обліку теплової енергії",null,null,null,null,null,null,null,null,null,null,null,null,null,null,null,null,null,null,null,null,null,null,null,null,null,null,null,null,null,null,null,null,null,null,null,null,null,null,null,null,null,null,null,{"$f":"IF(S77=\"ТАК\",TRUE,FALSE)","v":false},null,{"$f":"IF(AZ77=TRUE,1,0)","v":0},null,null,"Вузол комерційного обліку введено в експлуатацію"]
[null,null,null,null,null,null,null,null,null,null,null,null,null,null,null,null,null,null,null,null,null,null,null,null,null,null,null,null,null,null,null,null,null,null,null,null,null,null,null,null,null,null,null,null,null,null,null,null,null,null,null,null,null,null,null,null,"50% і більше споживачів перейшли на індивідуальне опалення"]
[null,null,null,null,null,null,null,null,null,null,null,null,null,null,null,null,null,null,null,null,null,null,null,null,null,null,null,null,null,null,null,null,null,null,null,null,null,null,null,null,null,null,null,null,null,null,null,null,null,null,null,null,null,null,null,null,"Технічна неможливість впровадження:"]
[null,null,null,null,"4.1.2",null,null,"Встановлення або модернізація індивідуального теплового пункту (ІТП)",null,null,null,null,null,null,null,null,null,null,null,null,null,null,null,null,null,null,null,null,null,null,null,null,null,null,null,null,null,null,null,null,null,null,null,null,null,null,null,null,null,null,null,{"$f":"IF(S80=\"ТАК\",TRUE,FALSE)","v":false},null,{"$f":"IF(AZ80=TRUE,1,0)","v":0},null,null,"Захід впроваджується або планується до впровадження третіми сторонами "]
[null,null,null,null,null,null,null,null,null,null,null,null,null,null,null,null,null,null,null,null,null,null,null,null,null,null,null,null,null,null,null,null,null,null,null,null,null,null,null,null,null,null,null,null,null,null,null,null,null,null,null,null,null,null,null,null,"ІТП встановлено, експлуатується та забезпечує погодозалежне регулювання"]
[null,null,null,null,null,null,null,null,null,null,null,null,null,null,null,null,null,null,null,null,null,null,null,null,null,null,null,null,null,null,null,null,null,null,null,null,null,null,null,null,null,null,null,null,null,null,null,null,null,null,null,null,null,null,null,null,"50 % і більше споживачів перейшли на індивідуальне опалення"]
[null,null,null,null,"Для будинків з автономним опаленням:",null,null,null,null,null,null,null,null,null,null,null,null,null,null,null,null,null,null,null,null,null,null,null,null,null,null,null,null,null,null,null,null,null,null,null,null,null,null,null,null,null,null,null,null,null,null,null,null,null,null,null,"Технічна неможливість впровадження:"]
[null,null,null,null,null,null,null,null,null,null,null,null,null,null,null,null,null,null,null,null,null,null,null,null,null,null,null,null,null,null,null,null,null,null,null,null,null,null,null,null,null,null,null,null,null,null,null,null,null,null,null,null,null,null,null,null,"Захід впроваджується або планується до впровадження третіми сторонами "]
[null,null,null,null,"4.1.3",null,null,"Заміна або модернізація загальнобудинкового котла або/та допоміжного обладнання (наприклад, насосів, систем автоматичного регулювання тощо)",null,null,null,null,null,null,null,null,null,null,null,null,null,null,null,null,null,null,null,null,null,null,null,null,null,null,null,null,null,null,null,null,null,null,null,null,null,null,null,null,null,null,null,{"$f":"IF(S85=\"ТАК\",TRUE,FALSE)","v":false},null,{"$f":"IF(AZ85=TRUE,1,0)","v":0},null,null,"Простий період окупності заходу (без врахування виплати часткового відшкодування) перевищує 10 років "]
[null,null,null,null,null,null,null,null,null,null,null,null,null,null,null,null,null,null,null,null,null,null,null,null,null,null,null,null,null,null,null,null,null,null,null,null,null,null,null,null,null,null,null,null,null,null,null,null,null,null,null,null,null,null,null,null,"Технічна неможливість впровадження:"]
[null,null,null,null,null,null,null,null,null,null,null,null,null,null,null,null,null,null,null,null,null,null,null,null,null,null,null,null,null,null,null,null,null,null,null,null,null,null,null,null,null,null,null,null,null,null,null,null,null,null,null,null,null,null,null,null,"Захід впроваджується або планується до впровадження третіми сторонами "]
[]
[]
[]
[null,null,null,null,"Незалежно від типу системи опалення (крім індивідуального опалення):"]
[]
[null,null,null,null,"4.1.4",null,null,"Теплоізоляція або/та заміна трубопроводів системи внутрішнього теплопостачання в неопалювальних приміщеннях",null,null,null,null,null,null,null,null,null,null,null,null,null,null,null,null,null,null,null,null,null,null,null,null,null,null,null,null,null,null,null,null,null,null,null,null,null,null,null,null,null,null,null,{"$f":"IF(S93=\"ТАК\",TRUE,FALSE)","v":false},null,{"$f":"IF(AZ93=TRUE,1,0)","v":0},null,null,"Теплоізоляція трубопроводів теплопостачання наявна, трубопровід та теплоізоляція візуально знаходиться в задовільному стані"]
[null,null,null,null,null,null,null,null,null,null,null,null,null,null,null,null,null,null,null,null,null,null,null,null,null,null,null,null,null,null,null,null,null,null,null,null,null,null,null,null,null,null,null,null,null,null,null,null,null,null,null,null,null,null,null,null,"50 % і більше споживачів перейшли на індивідуальне опалення"]
[null,null,null,null,null,null,null,null,null,null,null,null,null,null,null,null,null,null,null,null,null,null,null,null,null,null,null,null,null,null,null,null,null,null,null,null,null,null,null,null,null,null,null,null,null,null,null,null,null,null,null,null,null,null,null,null,"Технічна неможливість впровадження:"]
[null,null,null,null,null,null,null,null,null,null,null,null,null,null,null,null,null,null,null,null,null,null,null,null,null,null,null,null,null,null,null,null,null,null,null,null,null,null,null,null,null,null,null,null,null,null,null,null,null,null,null,null,null,null,null,null,"Захід впроваджується або планується до впровадження третіми сторонами "]
[]
[null,null,null,null,"4.1.5",null,null,"Теплоізоляція або/та заміна трубопроводів системи гарячого водопостачання в неопалювальних приміщеннях",null,null,null,null,null,null,null,null,null,null,null,null,null,null,null,null,null,null,null,null,null,null,null,null,null,null,null,null,null,null,null,null,null,null,null,null,null,null,null,null,null,null,null,{"$f":"IF(S98=\"ТАК\",TRUE,FALSE)","v":false},null,{"$f":"IF(AZ98=TRUE,1,0)","v":0},null,null,null,"Відсутні трубопроводи гарячого водопостачання у будинку в неопалювальних приміщеннях  "]
[null,null,null,null,null,null,null,null,null,null,null,null,null,null,null,null,null,null,null,null,null,null,null,null,null,null,null,null,null,null,null,null,null,null,null,null,null,null,null,null,null,null,null,null,null,null,null,null,null,null,null,null,null,null,null,null,null,"Теплоізоляція трубопроводів гарячого водопостачання наявна, трубопровід та теплоізоляція візуально знаходиться в задовільному стані"]
[null,null,null,null,null,null,null,null,null,null,null,null,null,null,null,null,null,null,null,null,null,null,null,null,null,null,null,null,null,null,null,null,null,null,null,null,null,null,null,null,null,null,null,null,null,null,null,null,null,null,null,null,null,null,null,null,null,"50 % і більше споживачів перейшли на індивідуальні системи гарячого водопостачання"]
[null,null,null,null,null,null,null,null,null,null,null,null,null,null,null,null,null,null,null,null,null,null,null,null,null,null,null,null,null,null,null,null,null,null,null,null,null,null,null,null,null,null,null,null,null,null,null,null,null,null,null,null,null,null,null,null,null,"Технічна неможливість впровадження:"]
[null,null,null,null,"4.1.6",null,null,"Гідравлічне балансування системи опалення шляхом встановлення автоматичних (балансувальних) клапанів",null,null,null,null,null,null,null,null,null,null,null,null,null,null,null,null,null,null,null,null,null,null,null,null,null,null,null,null,null,null,null,null,null,null,null,null,null,null,null,null,null,null,null,{"$f":"IF(S102=\"ТАК\",TRUE,FALSE)","v":false},null,{"$f":"IF(AZ102=TRUE,1,0)","v":0},null,null,"Автоматичні або ручні балансувальні клапани встановлено на всіх стояках або по групах стояків  ","Захід впроваджується або планується до впровадження третіми сторонами "]
[null,null,null,null,null,null,null,null,null,null,null,null,null,null,null,null,null,null,null,null,null,null,null,null,null,null,null,null,null,null,null,null,null,null,null,null,null,null,null,null,null,null,null,null,null,null,null,null,null,null,null,null,null,null,null,null,"50 % і більше споживачів перейшли на індивідуальне опалення"]
[null,null,null,null,null,null,null,null,null,null,null,null,null,null,null,null,null,null,null,null,null,null,null,null,null,null,null,null,null,null,null,null,null,null,null,null,null,null,null,null,null,null,null,null,null,null,null,null,null,null,null,null,null,null,null,null,"Для двотрубної системи у вузлах обв’язки опалювальних приладів встановлені, чи будуть встановлюватися в рамках Проекту, терморегулятори чи електронні регулятори (з функцією автоматичного регулювання перепаду тиску або обмеження витрати теплоносія) "]
[null,null,null,null,null,null,null,null,null,null,null,null,null,null,null,null,null,null,null,null,null,null,null,null,null,null,null,null,null,null,null,null,null,null,null,null,null,null,null,null,null,null,null,null,null,null,null,null,null,null,null,null,null,null,null,null,"Технічна неможливість впровадження:"]
[null,null,null,null,"4.1.7",null,null,"Комплекс робіт із теплоізоляції та улаштування зовнішніх стін ",null,null,null,null,null,null,null,null,null,null,null,null,null,null,null,null,null,null,null,null,null,null,null,null,null,null,null,null,null,null,null,null,null,null,null,null,null,null,null,null,null,null,null,{"$f":"IF(AZ2=FALSE,IF(S106=\"ТАК\",TRUE,FALSE),FALSE)","v":false},null,{"$f":"IF(AZ106=TRUE,1,0)","v":0},null,null,"Захід впроваджується або планується до впровадження третіми сторонами ","Наявне суцільне утеплення зовнішніх стін та простий період окупності заходу (без врахування виплати часткового відшкодування) більше 25 років. "]
[null,null,null,null,null,null,null,null,null,null,null,null,null,null,null,null,null,null,null,null,null,null,null,null,null,null,null,null,null,null,null,null,null,null,null,null,null,null,null,null,null,null,null,null,null,null,null,null,null,null,null,null,null,null,null,null,null,"Опір теплопередачі огороджуючих конструкцій відповідає вимогам  ДБН В.2.6-31:2016."]
[null,null,null,null,"4.1.8",null,null,"Комплекс робіт із теплоізоляції та улаштування опалювальних та неопалювальних горищ (технічних поверхів) та дахів",null,null,null,null,null,null,null,null,null,null,null,null,null,null,null,null,null,null,null,null,null,null,null,null,null,null,null,null,null,null,null,null,null,null,null,null,null,null,null,null,null,null,null,{"$f":"IF(AZ2=FALSE,IF(S108=\"ТАК\",TRUE,FALSE),FALSE)","v":false},null,{"$f":"IF(AZ108=TRUE,1,0)","v":0},null,null,null,"Фасад будівлі підпадає під дію охорони об’єктів та/або пам’яток культурної спадщини згідно Законом України  «Про охорону культурної спадщини» №1805-ІІІ від 8 червня 2000 року."]
[null,null,null,null,null,null,null,null,null,null,null,null,null,null,null,null,null,null,null,null,null,null,null,null,null,null,null,null,null,null,null,null,null,null,null,null,null,null,null,null,null,null,null,null,null,null,null,null,null,null,null,null,null,null,null,null,"Опір теплопередачі огороджуючих конструкцій відповідає вимогам  ДБН В.2.6-31:2016.","Технічна неможливість впровадження:"]
[null,null,null,null,null,null,null,null,null,null,null,null,null,null,null,null,null,null,null,null,null,null,null,null,null,null,null,null,null,null,null,null,null,null,null,null,null,null,null,null,null,null,null,null,null,null,null,null,null,null,null,null,null,null,null,null,"Простий період окупності заходу (без врахування виплати часткового відшкодування) перевищує 15 років","Захід впроваджується або планується до впровадження третіми сторонами "]
[null,null,null,null,null,null,null,null,null,null,null,null,null,null,null,null,null,null,null,null,null,null,null,null,null,null,null,null,null,null,null,null,null,null,null,null,null,null,null,null,null,null,null,null,null,null,null,null,null,null,null,null,null,null,null,null,"Технічна неможливість впровадження:"]
[null,null,null,null,"4.1.9",null,null,"Комплекс робіт із теплоізоляції та улаштування плит перекриття підвалу",null,null,null,null,null,null,null,null,null,null,null,null,null,null,null,null,null,null,null,null,null,null,null,null,null,null,null,null,null,null,null,null,null,null,null,null,null,null,null,null,null,null,null,{"$f":"IF(AZ2=FALSE,IF(S112=\"ТАК\",TRUE,FALSE),FALSE)","v":false},null,{"$f":"IF(AZ112=TRUE,1,0)","v":0},null,null,"Захід впроваджується або планується до впровадження третіми сторонами ","Опір теплопередачі огороджуючих конструкцій відповідає вимогам  ДБН В.2.6-31:2016."]
[null,null,null,null,null,null,null,null,null,null,null,null,null,null,null,null,null,null,null,null,null,null,null,null,null,null,null,null,null,null,null,null,null,null,null,null,null,null,null,null,null,null,null,null,null,null,null,null,null,null,null,null,null,null,null,null,null,"Простий період окупності заходу (без врахування виплати часткового відшкодування) перевищує 15 років"]
[null,null,null,null,null,null,null,null,null,null,null,null,null,null,null,null,null,null,null,null,null,null,null,null,null,null,null,null,null,null,null,null,null,null,null,null,null,null,null,null,null,null,null,null,null,null,null,null,null,null,null,null,null,null,null,null,null,"Технічна неможливість впровадження:"]
[null,null,null,null,"4.1.10",null,null,"Заміна або ремонт зовнішніх дверей або/та облаштування тамбурів зовнішнього входу",null,null,null,null,null,null,null,null,null,null,null,null,null,null,null,null,null,null,null,null,null,null,null,null,null,null,null,null,null,null,null,null,null,null,null,null,null,null,null,null,null,null,null,{"$f":"IF(AZ2=FALSE,IF(S115=\"ТАК\",TRUE,FALSE),FALSE)","v":false},null,{"$f":"IF(AZ115=TRUE,1,0)","v":0},null,null,null,"Захід впроваджується або планується до впровадження третіми сторонами "]
[null,null,null,null,null,null,null,null,null,null,null,null,null,null,null,null,null,null,null,null,null,null,null,null,null,null,null,null,null,null,null,null,null,null,null,null,null,null,null,null,null,null,null,null,null,null,null,null,null,null,null,null,null,null,null,null,"Зовнішні двері знаходяться в задовільному стані"]
[null,null,null,null,null,null,null,null,null,null,null,null,null,null,null,null,null,null,null,null,null,null,null,null,null,null,null,null,null,null,null,null,null,null,null,null,null,null,null,null,null,null,null,null,null,null,null,null,null,null,null,null,null,null,null,null,"Технічна неможливість впровадження:"]
[null,null,null,null,"4.1.11",null,null,"Заміна або ремонт блоків віконних або/та блоків балконних дверних у приміщеннях (місцях) загального користування будівлі",null,null,null,null,null,null,null,null,null,null,null,null,null,null,null,null,null,null,null,null,null,null,null,null,null,null,null,null,null,null,null,null,null,null,null,null,null,null,null,null,null,null,null,{"$f":"IF(AZ2=FALSE,IF(S118=\"ТАК\",TRUE,FALSE),FALSE)","v":false},null,{"$f":"IF(AZ118=TRUE,1,0)","v":0},null,null,"Захід впроваджується або планується до впровадження третіми сторонами "]
[null,null,null,null,null,null,null,null,null,null,null,null,null,null,null,null,null,null,null,null,null,null,null,null,null,null,null,null,null,null,null,null,null,null,null,null,null,null,null,null,null,null,null,null,null,null,null,null,null,null,null,null,null,null,null,null,"Блоки віконні та блоки балконні дверні у приміщеннях (місцях) загального користування будівлі знаходяться в задовільному стані "]
[null,null,null,null,null,null,null,null,null,null,null,null,null,null,null,null,null,null,null,null,null,null,null,null,null,null,null,null,null,null,null,null,null,null,null,null,null,null,null,null,null,null,null,null,null,null,null,null,null,null,null,null,null,null,null,null,"Технічна неможливість впровадження:"]
[null,null,null,null,null,null,null,null,null,null,null,null,null,null,null,null,null,null,null,null,null,null,null,null,null,null,null,null,null,null,null,null,null,null,null,null,null,null,null,null,null,null,null,null,null,null,null,null,null,null,null,null,null,null,null,null,"Захід впроваджується або планується до впровадження третіми сторонами "]
[]
[]
[null,null,null,null,"* Допускається передбачати часткове виконання заходів, якщо:\n- інженерна система децентралізована та зміна її технічних характеристик не впливає на інших споживачів будинку (наприклад встановлення рекуператорів);\n- зміна характеристик елементу централізованої інженерної системи не змінює її характеристики в цілому (наприклад заміна опалювальних приладів на прилади з аналогічною чи розрахунковою потужністю);\n- окремі елементи в розрізі обов’язкових заходів підпадають під допустимі підстави виключення обов’язкових заходів (наприклад часткова теплоізоляція трубопроводів, заміна вікон/зовнішніх дверей в місцях загального користування) або окремі елементи огороджувальних конструкцій підпадають під дію охорони об’єктів та/або пам’яток культурної спадщини згідно з Закону України «Про охорону культурної спадщини»;\n- заміна окремих елементів в розрізі додаткових заходів недоцільна на розсуд енергоаудитора/Заявника (наприклад часткова заміна вікон в квартирах, модернізація системи освітлення)."]
[]
[]
[]
[]
[]
[]
[]
[]
[]
[]
[null,null,null,null,"** Обов’язкові заходи виключаються зі складу проекту тільки за виконання умов зазначених у допустимих підставах виключення заходів з переліку обов'язкових відповідно до Додатку 5 цієї Програми. ОСББ може прийняти рішення про впровадження такого(их) заходів навіть при виконанні зазначених умов. Про таке рішення ОСББ має бути зроблено відповідний запис у колонці «Опис підстави виключення заходу»."]
[]
[]
[]
[]
[null,null,null,null,"4.2А. Додаткові заходи для Пакету Заходів «А»"]
[null,null,null,null,"№",null,null,"Назва заходу",null,null,null,null,null,null,null,null,null,null,null,null,null,null,null,null,null,null,null,null,null,"Рішення про впровадження заходу (ТАК/НІ)"]
[]
[]
[null,null,null,null,"4.2А.1",null,null,"Комплекс робіт із теплоізоляції та улаштування опалювальних та неопалювальних горищ (технічних поверхів) та дахів",null,null,null,null,null,null,null,null,null,null,null,null,null,null,null,null,null,null,null,null,null,null,null,null,null,null,null,null,null,null,null,null,null,null,null,null,null,null,null,null,null,null,null,{"$f":"IF(AZ2=TRUE,IF(AD144=\"ТАК\",TRUE,FALSE),FALSE)","v":false},null,{"$f":"IF(AZ144=TRUE,1,0)","v":0}]
[]
[null,null,null,null,"4.2А.2",null,null,"Модернізація системи гарячого водопостачання",null,null,null,null,null,null,null,null,null,null,null,null,null,null,null,null,null,null,null,null,null,null,null,null,null,null,null,null,null,null,null,null,null,null,null,null,null,null,null,null,null,null,null,{"$f":"IF(AZ2=TRUE,IF(AD146=\"ТАК\",TRUE,FALSE),FALSE)","v":false},null,{"$f":"IF(AZ146=TRUE,1,0)","v":0}]
[]
[null,null,null,null,"4.2А.3",null,null,"Встановлення вузлів розподільного обліку теплової енергії на потреби опалення або/та приладів - розподілювачів теплової енергії у квартирах ",null,null,null,null,null,null,null,null,null,null,null,null,null,null,null,null,null,null,null,null,null,null,null,null,null,null,null,null,null,null,null,null,null,null,null,null,null,null,null,null,null,null,null,{"$f":"IF(AZ2=TRUE,IF(AD148=\"ТАК\",TRUE,FALSE),FALSE)","v":false},null,{"$f":"IF(AZ148=TRUE,1,0)","v":0}]
[]
[]
[null,null,null,null,"4.2А.4",null,null,"Встановлення автоматичних регуляторів температури повітря у приміщеннях на опалювальних приладах водяної системи опалення у квартирах або/та у приміщеннях (місцях) загального користування будівлі",null,null,null,null,null,null,null,null,null,null,null,null,null,null,null,null,null,null,null,null,null,null,null,null,null,null,null,null,null,null,null,null,null,null,null,null,null,null,null,null,null,null,null,{"$f":"IF(AZ2=TRUE,IF(AD151=\"ТАК\",TRUE,FALSE),FALSE)","v":false},null,{"$f":"IF(AZ151=TRUE,1,0)","v":0}]
[]
[]
[]
[null,null,null,null,"4.2А.5",null,null,"Заміна або/та теплоізоляція трубопроводів системи опалення або/та приладів водяної системи опалення у приміщеннях (місцях) загального користування будівлі",null,null,null,null,null,null,null,null,null,null,null,null,null,null,null,null,null,null,null,null,null,null,null,null,null,null,null,null,null,null,null,null,null,null,null,null,null,null,null,null,null,null,null,{"$f":"IF(AZ2=TRUE,IF(AD155=\"ТАК\",TRUE,FALSE),FALSE)","v":false},null,{"$f":"IF(AZ155=TRUE,1,0)","v":0}]
[]
[]
[null,null,null,null,"4.2А.6",null,null,"Заміна або ремонт блоків віконних або/та блоків балконних дверних у приміщеннях (місцях) загального користування будівлі ",null,null,null,null,null,null,null,null,null,null,null,null,null,null,null,null,null,null,null,null,null,null,null,null,null,null,null,null,null,null,null,null,null,null,null,null,null,null,null,null,null,null,null,{"$f":"IF(AZ2=TRUE,IF(AD158=\"ТАК\",TRUE,FALSE),FALSE)","v":false},null,{"$f":"IF(AZ158=TRUE,1,0)","v":0}]
[]
[]
[null,null,null,null,"4.2А.7",null,null,"Заміна або ремонт зовнішніх дверей або/та облаштування тамбурів зовнішнього входу",null,null,null,null,null,null,null,null,null,null,null,null,null,null,null,null,null,null,null,null,null,null,null,null,null,null,null,null,null,null,null,null,null,null,null,null,null,null,null,null,null,null,null,{"$f":"IF(AZ2=TRUE,IF(AD161=\"ТАК\",TRUE,FALSE),FALSE)","v":false},null,{"$f":"IF(AZ161=TRUE,1,0)","v":0}]
[]
[null,null,null,null,"4.2А.8",null,null,"Комплекс робіт із модернізації та облаштування системи освітлення у приміщеннях (місцях) загального користування будівлі ",null,null,null,null,null,null,null,null,null,null,null,null,null,null,null,null,null,null,null,null,null,null,null,null,null,null,null,null,null,null,null,null,null,null,null,null,null,null,null,null,null,null,null,{"$f":"IF(AZ2=TRUE,IF(AD163=\"ТАК\",TRUE,FALSE),FALSE)","v":false},null,{"$f":"IF(AZ163=TRUE,1,0)","v":0}]
[]
[]
[]
[]
[null,null,null,null,"4.2Б. Додаткові заходи для Пакету заходів «Б»"]
[null,null,null,null,"№",null,null,"Назва заходу",null,null,null,null,null,null,null,null,null,null,null,null,null,null,null,null,null,null,null,null,null,"Рішення про впровадження заходу (ТАК/НІ)"]
[]
[]
[null,null,null,null,"4.2Б.1",null,null,"Комплекс робіт із теплоізоляції та улаштування зовнішніх стін нижче рівня ґрунту",null,null,null,null,null,null,null,null,null,null,null,null,null,null,null,null,null,null,null,null,null,null,null,null,null,null,null,null,null,null,null,null,null,null,null,null,null,null,null,null,null,null,null,{"$f":"IF(AZ2=TRUE,IF(AD172=\"ТАК\",TRUE,FALSE),FALSE)","v":false},null,{"$f":"IF(AZ172=TRUE,1,0)","v":0}]
[]
[null,null,null,null,"4.2Б.2",null,null,"Модернізація системи гарячого водопостачання",null,null,null,null,null,null,null,null,null,null,null,null,null,null,null,null,null,null,null,null,null,null,null,null,null,null,null,null,null,null,null,null,null,null,null,null,null,null,null,null,null,null,null,{"$f":"IF(AZ2=TRUE,IF(AD174=\"ТАК\",TRUE,FALSE),FALSE)","v":false},null,{"$f":"IF(AZ174=TRUE,1,0)","v":0}]
[]
[null,null,null,null,"4.2Б.3",null,null,"Заміна або/та теплоізоляція трубопроводів системи опалення або/та приладів водяної системи опалення у приміщеннях (місцях) загального користування будівлі",null,null,null,null,null,null,null,null,null,null,null,null,null,null,null,null,null,null,null,null,null,null,null,null,null,null,null,null,null,null,null,null,null,null,null,null,null,null,null,null,null,null,null,{"$f":"IF(AZ2=TRUE,IF(AD176=\"ТАК\",TRUE,FALSE),FALSE)","v":false},null,{"$f":"IF(AZ176=TRUE,1,0)","v":0}]
[]
[]
[null,null,null,null,"4.2Б.4",null,null,"Заміна або/та теплоізоляція трубопроводів системи опалення або/та приладів водяної системи опалення у квартирах",null,null,null,null,null,null,null,null,null,null,null,null,null,null,null,null,null,null,null,null,null,null,null,null,null,null,null,null,null,null,null,null,null,null,null,null,null,null,null,null,null,null,null,{"$f":"IF(AZ2=TRUE,IF(AD179=\"ТАК\",TRUE,FALSE),FALSE)","v":false},null,{"$f":"IF(AZ179=TRUE,1,0)","v":0}]
[]
[null,null,null,null,"4.2Б.5",null,null,"Встановлення вузлів розподільного обліку теплової енергії на потреби опалення або/та приладів - розподілювачів теплової енергії у квартирах",null,null,null,null,null,null,null,null,null,null,null,null,null,null,null,null,null,null,null,null,null,null,null,null,null,null,null,null,null,null,null,null,null,null,null,null,null,null,null,null,null,null,null,{"$f":"IF(AZ2=TRUE,IF(AD181=\"ТАК\",TRUE,FALSE),FALSE)","v":false},null,{"$f":"IF(AZ181=TRUE,1,0)","v":0}]
[]
[]
[null,null,null,null,"4.2Б.6",null,null,"Встановлення автоматичних регуляторів температури повітря у приміщеннях на опалювальних приладах водяної системи опалення у квартирах або/та у приміщеннях (місцях) загального користування будівлі",null,null,null,null,null,null,null,null,null,null,null,null,null,null,null,null,null,null,null,null,null,null,null,null,null,null,null,null,null,null,null,null,null,null,null,null,null,null,null,null,null,null,null,{"$f":"IF(AZ2=TRUE,IF(AD184=\"ТАК\",TRUE,FALSE),FALSE)","v":false},null,{"$f":"IF(AZ184=TRUE,1,0)","v":0}]
[]
[]
[]
[null,null,null,null,"4.2Б.7",null,null,"Заміна або ремонт блоків віконних або/та блоків балконних дверних у квартирах, утеплення і скління наявних балконів і лоджій",null,null,null,null,null,null,null,null,null,null,null,null,null,null,null,null,null,null,null,null,null,null,null,null,null,null,null,null,null,null,null,null,null,null,null,null,null,null,null,null,null,null,null,{"$f":"IF(AZ2=TRUE,IF(AD188=\"ТАК\",TRUE,FALSE),FALSE)","v":false},null,{"$f":"IF(AZ188=TRUE,1,0)","v":0}]
[]
[]
[null,null,null,null,"4.2Б.8",null,null,"Комплекс робіт із модернізації та облаштування системи освітлення у приміщеннях (місцях) загального користування будівлі",null,null,null,null,null,null,null,null,null,null,null,null,null,null,null,null,null,null,null,null,null,null,null,null,null,null,null,null,null,null,null,null,null,null,null,null,null,null,null,null,null,null,null,{"$f":"IF(AZ2=TRUE,IF(AD191=\"ТАК\",TRUE,FALSE),FALSE)","v":false},null,{"$f":"IF(AZ191=TRUE,1,0)","v":0}]
[]
[]
[null,null,null,null,"4.2Б.9",null,null,"Комплекс робіт із модернізації та облаштування системи вентиляції з встановленням рекуператорів",null,null,null,null,null,null,null,null,null,null,null,null,null,null,null,null,null,null,null,null,null,null,null,null,null,null,null,null,null,null,null,null,null,null,null,null,null,null,null,null,null,null,null,{"$f":"IF(AZ2=TRUE,IF(AD194=\"ТАК\",TRUE,FALSE),FALSE)","v":false},null,{"$f":"IF(AZ194=TRUE,1,0)","v":0}]
[]
[null,null,null,null,"4.2Б.10",null,null,"Інші типи модернізації системи внутрішнього теплопостачання",null,null,null,null,null,null,null,null,null,null,null,null,null,null,null,null,null,null,null,null,null,null,null,null,null,null,null,null,null,null,null,null,null,null,null,null,null,null,null,null,null,null,null,{"$f":"IF(AZ2=TRUE,IF(AD196=\"ТАК\",TRUE,FALSE),FALSE)","v":false},null,{"$f":"IF(AZ196=TRUE,1,0)","v":0}]
[]
[]
[null,null,null,null,"2. ВИМОГИ ДО ОБЛАДНАННЯ ТА МАТЕРІАЛІВ ДОТРИМАНІ?"]
[null,null,null,null,"ВИМОГИ ФОНДУ:",null,null,null,null,null,null,null,null,null,null,null,null,null,null,null,null,null,null,null,null,null,null,"ЧИ виконується вимога?",null,null,"ПІДТВЕРДЖЕННЯ:\n(вказати НД або сторінки ПД для перевірки відповідності вимогам Фонду - відділом верифікації ТО)"]
[null,null,null,null,"Захід \"Встановлення вузла комерційного обліку теплової енергії\", передбачає?"]
[null,null,null,null,"Вузол обліку наявний в реєстрі затверджених типів ЗВТ, сертифікат дійсний?"]
[null,null,null,null,"Клас точності приладу обліку не нижче ніж 2, відповідно ДСТУ EN 1434?"]
[null,null,null,null,"Місце встановлення вузла обліку відображено на плані?"]
[null,null,null,null,"Захід виділено окремою специфікацією (розділом в специфікації) та вона складена вірно?"]
[null,null,null,null,"Локальний кошторис щодо Заходу «Встановлення вузла комерційного обліку теплової енергії» складено окремо, а його назва відповідає назві Заходу, ключові обсяги робіт в специфікації заходу співпадать з кошторисом?"]
[null,null,null,null,"Примітка:\n- Короткий опис заходу із зазначенням технічного рішення, основних характеристик обладнання, тощо."]
[]
[null,null,null,null,"Захід \"Встановлення або модернізація індивідуального теплового пункту (ІТП)\", передбачає?"]
[null,null,null,null,"В ІТП встановлено необхідне обладнання, що забезпечує автоматичне погодозалежне регулювання?"]
[null,null,null,null,"- регулятор теплового потоку з приводом:"]
[null,null,null,null,"- погодозалежний контролер:"]
[null,null,null,null,"- датчик температури подавального трубопроводу:"]
[null,null,null,null,"- датчик температури зовнішнього повітря:"]
[null,null,null,null,"- інше обладнання ІТП:"]
[null,null,null,null,"Місце встановлення ІТП відображено на плані?"]
[null,null,null,null,"Захід виділено окремою специфікацією (розділом в специфікації) та вона складена вірно?"]
[null,null,null,null,"Локальний кошторис щодо Заходу «Встановлення або модернізація індивідуального теплового пункту (ІТП)» складено окремо, а його назва відповідає назві Заходу, ключові обсяги робіт в специфікації заходу співпадать з кошторисом?"]
[null,null,null,null,"Примітка:\n- Короткий опис заходу із зазначенням технічного рішення, основних характеристик обладнання, тощо."]
[]
[null,null,null,null,"Захід \"Заміна або модернізація загальнобудинкового котла або/та допоміжного обладнання (наприклад, насосів, систем автоматичного регулювання тощо)\", передбачає?"]
[null,null,null,null,"Коефіцієнт корисної дії газових котлів, що пропонуються до заміни, становить ≥ 92%?"]
[null,null,null,null,"Теплова потужність котла (-ів) не перевищує потужність існуючих?"]
[null,null,null,null,"Захід виділено окремою специфікацією (розділом в специфікації) та вона складена вірно?"]
[null,null,null,null,"Локальний кошторис щодо Заходу «Заміна або модернізація загальнобудинкового котла або/та допоміжного обладнання » складено окремо, а його назва відповідає назві Заходу, ключові обсяги робіт в специфікації заходу співпадать з кошторисом?"]
[null,null,null,null,"Примітка:\n- Короткий опис заходу із зазначенням технічного рішення, основних характеристик обладнання, тощо."]
[]
[null,null,null,null,"Захід \"Теплоізоляція або/та заміна трубопроводів системи внутрішнього теплопостачання в неопалювальних приміщеннях\", передбачає?"]
[null,null,null,null,"Товщина теплоізоляції відповідає Додатку Б ДБН В.2.5-67:2013, а саме:"]
[null,null,null,null,"    - трубопроводи з внутрішнім діаметром до 22 мм – δ=20 мм?"]
[null,null,null,null,"    - трубопроводи з внутрішнім діаметром 22-35 мм – δ=30 мм?"]
[null,null,null,null,"    - трубопроводи з внутрішнім діаметром 35-100 мм – дорівнює внутрішньому діаметру?"]
[null,null,null,null,"    - трубопроводи з внутрішнім діаметром більше 100 мм – δ=100 мм?"]
[null,null,null,null,"На кресленнях відображені ділянки трубопроводів теплопостачання  що підлягають утепленню?"]
[null,null,null,null,"На кресленнях вказаний діаметр трубопроводів теплопостачання та товщина теплоізоляції?"]
[null,null,null,null,"Захід виділено окремою специфікацією (розділом в специфікації), зазначено марки, товщини теплоізоляції та чи відповідає кількість ключових матеріалів в специфікації - кресленням?"]
[null,null,null,null,"Локальний кошторис щодо Заходу «Теплоізоляція або/та заміна трубопроводів системи внутрішнього теплопостачання в неопалювальних приміщеннях» складено окремо, а його назва відповідає назві Заходу, ключові обсяги робіт в специфікації заходу співпадать з кошторисом?"]
[null,null,null,null,"Примітка:\n- Короткий опис заходу із зазначенням технічного рішення, основних характеристик обладнання, тощо."]
[]
[null,null,null,null,"Захід \"Теплоізоляція або/та заміна трубопроводів системи гарячого водопостачання в неопалювальних приміщеннях\", передбачає?"]
[null,null,null,null,"Товщина теплоізоляції не менше 10 мм, згідно з п.7.8 ДБН В.2.5-64:2012?"]
[null,null,null,null,"На кресленнях відображені ділянки трубопроводів ГВП  що підлягають утепленню в неопалювальних приміщеннях?"]
[null,null,null,null,"На кресленнях вказаний діаметр трубопроводів ГВП та товщина їх теплоізоляції?"]
[null,null,null,null,"Захід виділено окремою специфікацією (розділом в специфікації), зазначено марки, товщини теплоізоляції  та чи відповідає кількість ключових матеріалів в специфікації - кресленням?"]
[null,null,null,null,"Локальний кошторис щодо Заходу «Теплоізоляція або/та заміна трубопроводів системи гарячого водопостачання в неопалювальних приміщеннях» складено окремо, а його назва відповідає назві Заходу, ключові обсяги робіт в специфікації заходу співпадать з кошторисом?"]
[null,null,null,null,"Примітка:\n- Короткий опис заходу із зазначенням технічного рішення, основних характеристик обладнання, тощо."]
[]
[null,null,null,null,"Захід \"Гідравлічне балансування системи опалення шляхом встановлення автоматичних (балансувальних) клапанів\", передбачає?"]
[null,null,null,null,"Балансування стояків системи опалення передбачено автоматичними балансувальними клапанами для 100% стояків?"]
[null,null,null,null,"Застосовані клапани являються автоматичними?"]
[null,null,null,null,"На кресленнях відображені місця встановлення балансувальних клапанів та їх вузли обв'язки?"]
[null,null,null,null,"Обсяги ключових матеріалів та обладнання відповідають специфікації та кошторису?"]
[null,null,null,null,"Локальний кошторис щодо Заходу «Гідравлічне балансування системи опалення шляхом встановлення автоматичних (балансувальних) клапанів» складено окремо, а його назва відповідає назві Заходу, ключові обсяги робіт в специфікації заходу співпадать з кошторисом?"]
[null,null,null,null,"Примітка:\n- Короткий опис заходу із зазначенням технічного рішення, основних характеристик обладнання, тощо."]
[]
[null,null,null,null,"Захід \"Комплекс робіт із теплоізоляції та улаштування зовнішніх стін\", передбачає?"]
[null,null,null,null,"Приведений опір теплопередачі огороджувальної конструкції відповідає вимогам Програми?:"]
[null,null,null,null,"Проектним рішеннямм передбачено влаштування теплоізоляційного шару по основному полю товщиною, не менше?:\n- 1-ша температурна зони:\nа) для теплоізоляційних виробів на мінеральній основі – 150 мм;\nб) для теплоізоляційних матеріалів на органічній основі – 120 мм;\n- 2га температурна зона:\nа) для теплоізоляційних виробів на мінеральній основі – 120 мм;\nб) для теплоізоляційних матеріалів на органічній основі – 100 мм;"]
[null,null,null,null,"Прийнята товщина теплоізоляційного шару по основному полю менше вище вказаних значень?"]
[null,null,null,null,"Для обгрунтування прийнятої товщини теплоізоляційного шару  в складі проектної документації наведено розрахунок приведеного опору теплопередачі конструкції (з врахуванням теплопровідних включень) згідно з розділом 5 ДСТУ Б В.2.6-189:2013 ?"]
[null,null,null,null,"Характеристики теплоізоляційних матеріалів, що застосовуються вказані в окремій таблиці на кресленнях марки АР/АБ або ПЗ, а їх показників відповідають вимогам Програми?"]
[null,null,null,null,"Проектними рішеннями має бути передбачено облаштування конструктивних вузлів, а саме:"]
[null,null,null,null,"- примикання фасадної теплоізоляції до парапету  з влаштуванням додаткового металевого фартуху (накривки) з крапельником на верхній частині парапету;"]
[null,null,null,null,"- примикання фасадної теплоізоляції до карнизу;"]
[null,null,null,null,"-  примикання фасадної теплоізоляції до віконних прорізів знизу, зверху і по бокам;"]
[null,null,null,null,"- примикання фасадної теплоізоляції до віконних прорізів знизу з влаштуванням відливу;"]
[null,null,null,null,"- примикання фасадної теплоізоляції до дверних прорізів зверху і по бокам;"]
[null,null,null,null,"- примикання фасадної теплоізоляції до цокольної частини;"]
[null,null,null,null,"- примикання фасадної теплоізоляції до плит та огороджувальних конструкцій балконів і лоджій;"]
[null,null,null,null,"- облаштування огороджувальних конструкцій балконів і лоджій;"]
[null,null,null,null,"- схему перев’язки плит по основному полю, зовнішніх та внутрішніх кутах;"]
[null,null,null,null,"- схему розташування анкерних пристроїв по основному полю стіни, на кутах та в місцях протипожежного обрамлення;"]
[null,null,null,null,"- схему посиленого армування склосіткою в місцях прорізів, зовнішніх і внутрішніх кутів;"]
[null,null,null,null,"- облаштування мощення навколо будівлі;"]
[null,null,null,null,"- облаштування навісних конструкцій над входом;"]
[null,null,null,null,"- облаштування місць проходження газової труби (за наявності на фасаді);"]
[null,null,null,null,"- облаштування місць встановлення зовнішніх блоків кондиціонерів (за наявності на фасаді);"]
[null,null,null,null,"- облаштування місць кріплення водостічної системи (за наявності) та пожежних драбин (за наявності);"]
[null,null,null,null,"- чи передбачені протипожежні обрамлення вікон та пояси кожні три поверхи у разі застосування горючого утеплювача?"]
[null,null,null,null,"Застосовуються збірні системи фасадної теплоізоляції у відповідності до вимог НТД, а саме:"]
[null,null,null,null,"Чи відповідає склад компонентів запроектованої фасадної системи зразку, який пройшов випробування на стійкість до циклічних кліматичних впливів (з протоколу)?"]
[null,null,null,null,"Для мінераловатного утеплювача передбачено суцільний шар приклеювання?"]
[null,null,null,null,"Поверх мінераловатного утеплювача не застосовуються акрилові штукатурки та фарби?"]
[null,null,null,null,"Рішення щодо клаптикового утеплення прийнятні?"]
[null,null,null,null,"В проектній документації наведені креслення  конструктивних вузлів (доутеплення)? схему \"стикування\" проектованого фасаду до існуючої системи скріпленої теплоізоляції, схему \"стикування\" утеплювачів при обрамленні вікон та поясів з мінеральної вати на фрагментах фасадів з існуючим утепленням?"]
[null,null,null,null,"Захід виділено окремою відомостю робіт (розділом в відомості), зазначено марки утеплювачів, компонентів фасадної системи  та чи відповідає обсяг ключових матеріалів та робіт в специфікації - кресленням?"]
[null,null,null,null,"Локальний кошторис щодо Заходу «Комплекс робіт із теплоізоляції та улаштування зовнішніх стін» складено окремо, а його назва відповідає назві Заходу, ключові обсяги робіт в специфікації заходу співпадать з кошторисом?"]
[null,null,null,null,"Примітка:\n- Короткий опис заходу із зазначенням технічного рішення, основних характеристик обладнання, тощо."]
[]
[null,null,null,null,"Захід \"Комплекс робіт із теплоізоляції та улаштування опалювальних та неопалювальних горищ (технічних поверхів) та дахів\", передбачає?"]
[null,null,null,null,"Оберіть тип конструкції:"]
[null,null,null,null," В проектній документації приведено розрахунок приведеного опору теплопередачі конструкції (з врахуванням лінійних та точкових теплопровідних включень, наявності розривів утеплювача в місцях конструктивних елементів - ходових містків, балок, мауерлатів, леженів, лаг, крокв, обрешітки тощо) згідно розділу 5 ДСТУ Б В.2.6-189?"]
[null,null,null,null,"Розраховане значення приведеного опору теплопередачі відповідає нормативним вимогам визначеним в табл. 3 ДБН В.2.6-31:2016?"]
[null,null,null,null,"Характеристики теплоізоляційних матеріалів, що застосовуються для утеплення суміщених покриттів вказані в окремій таблиці на кресленнях марки АР/АБ або ПЗ, а їх показників відповідають вимогам Програми?"]
[null,null,null,null,"Передбачені технічні рішення з влаштування осушувальної вентиляції суміщеного покриття традиційного типу, а саме: встановлення флюгарок або влаштування щільових продухів згідно таблиці 10 ДБН В.2.6-220:2017?"]
[null,null,null,null,"Наведені креслення план даху з позначенням ділянок утеплення, розташуванням флюгарок/вентканалів/парапетів/водостічних лійок (за наявності)?"]
[null,null,null,null,"Наведені креслення конструктивних вузлів: примикання до парапетів та вентканалів, лійка водостічної системи (за наявності), флюгарка."]
[null,null,null,null,"Передбачено влаштування пароізоляційного шару під утеплювачем і гідроізоляція над утеплювачем?"]
[null,null,null,null,"Характеристики теплоізоляційних матеріалів, що застосовуються для утеплення неопалювального горища вказані в окремій таблиці на кресленнях марки АР/АБ або ПЗ, а їх показників відповідають вимогам Програми?"]
[null,null,null,null,"Наведено план горища з відображенням зон утеплення, ходових мостків, вентканалів, технологічних проходів?"]
[null,null,null,null,"Наведені креслення конструктивних вузлів: розривів утеплювача в місцях конструктивних елементів - ходових містків, балок, мауерлатів, леженів, лаг тощо?"]
[null,null,null,null,"Передбачено влаштування пароізоляційного шару під утеплювачем?"]
[null,null,null,null,"Для запобігання вивітрювання мінеральної вати, передбачено влаштування дифузійної мембрани?"]
[null,null,null,null,"Характеристики теплоізоляційних матеріалів, що застосовуються для утеплення опалювальних горищ та покриттів мансардного типу вказані в окремій таблиці на кресленнях марки АР/АБ або ПЗ, а їх показників відповідають вимогам Програми?"]
[null,null,null,null,"В покритті опалювального горища чи покритті мансардного типу передбачено влаштування пароізоляційного шару під утеплювачем? "]
[null,null,null,null,"В покритті опалювального горища чи покритті мансардного типу передбачено влаштування гідроізоляційного шару (дифузійної плівки) над утеплювачем?"]
[null,null,null,null,"Чи передбачено облаштування повітряного прошарку для осушувальної вентиляції утеплювача?"]
[null,null,null,null,"Наведено план утеплення опалювального горища чи покриття мансардного типу, схема укладання плит, тощо. Деталювання та/або конструктивні вузли?"]
[null,null,null,null,"Захід виділено окремою відомостю робіт (розділом в відомості), зазначено марки утеплювачів, компонентів утеплення та чи відповідає обсяг ключових матеріалів та робіт в специфікації - кресленням?"]
[null,null,null,null,"Локальний кошторис щодо Заходу «Комплекс робіт із теплоізоляції та улаштування опалювальних та неопалювальних горищ (технічних поверхів) та дахів» складено окремо, а його назва відповідає назві Заходу, ключові обсяги робіт в специфікації заходу співпадать з кошторисом?"]
[null,null,null,null,"Примітка:\n- Короткий опис заходу із зазначенням технічного рішення, основних характеристик обладнання, тощо."]
[]
[null,null,null,null,"Захід \"Комплекс робіт із теплоізоляції та улаштування плит перекриття підвалу\", передбачає?"]
[null,null,null,null,"В проектній документації наведено розрахунок приведеного опору теплопередачі конструкції (з врахуванням лінійних та точкових теплопровідних включень, наявності розривів утеплювача в місцях конструктивних елементів - балок, труб тощо) згідно розділу 5 ДСТУ Б В.2.6-189?"]
[null,null,null,null,"Характеристики теплоізоляційних матеріалів, що застосовуються для утеплення неопалювального підвалу (перекриттій над проїздами, підлоги по грунту) вказані в окремій таблиці на кресленнях марки АР/АБ або ПЗ, а їх показників відповідають вимогам Програми?"]
[null,null,null,null,"Технічні рішення перекриттів неопалювальних підвалів прийнятні:"]
[null,null,null,null,"Влаштування пароізоляційного шару між перекриттям та теплоізоляційним шаром, передбачено?"]
[null,null,null,null,"Чи передбачено механічне кріплення утеплювача?"]
[null,null,null,null,"Поверх мінераловатного утеплювача акрилові штукатурки та фарби не застосовуються?"]
[null,null,null,null,"Захід виділено окремою відомостю робіт (розділом в відомості), зазначено марки утеплювачів, компонентів утеплення та чи відповідає обсяг ключових матеріалів та робіт в специфікації - кресленням?"]
[null,null,null,null,"Локальний кошторис щодо Заходу «Комплекс робіт із теплоізоляції та улаштування плит перекриття підвалу» складено окремо, а його назва відповідає назві Заходу, ключові обсяги робіт в специфікації заходу співпадать з кошторисом?"]
[null,null,null,null,"Примітка:\n- Короткий опис заходу із зазначенням технічного рішення, основних характеристик обладнання, тощо."]
[]
[null,null,null,null,"Захід \"Заміна або ремонт зовнішніх дверей або/та облаштування тамбурів зовнішнього входу\", передбачає?"]
[null,null,null,null,"В складі проектної документації відображено приведений опір дверних конструкцій, що підлягають встановленню/заміні?"]
[null,null,null,null,"В описовій частині («ПЗ» чи «АБ») зазначено тип (матеріал, профіль, заповнення тощо) та виробника дверних конструкцій?"]
[null,null,null,null,"Рішення по влаштуванню монтажного з’єднувального шва, його паро-, тепло- та гідроізоляцію розроблені та наведені на кресленнях?"]
[null,null,null,null,"Для заходу складено специфікацію відомостей робіт та елементів заповнення дверних прорізів?"]
[null,null,null,null,"На кресленнях фасадів та/або поверхових планах дверні конструкції, що плануються до заміни/встановлення відмічені, відповідно до специфікації елементів заповнення дверних прорізів?"]
[null,null,null,null,"Локальний кошторис щодо Заходу «Заміна або ремонт зовнішніх дверей або/та облаштування тамбурів зовнішнього входу» складено окремо, а його назва відповідає назві Заходу, ключові обсяги робіт в специфікації заходу співпадать з кошторисом?"]
[null,null,null,null,"Примітка:\n- Короткий опис заходу із зазначенням технічного рішення, основних характеристик обладнання, тощо."]
[]
[null,null,null,null,"Захід \"Заміна або ремонт блоків віконних або/та блоків балконних дверних у приміщеннях (місцях) загального користування будівлі\", передбачає?"]
[null,null,null,null,"В складі проектної документації відображено приведений опір віконних конструкцій, що розмежовують опалювальний та неопалювальний об'єми, які підлягають встановленню/заміні?"]
[null,null,null,null,"В описовій частині («ПЗ» чи «АБ») зазначено тип (профіль, склопакет) та виробника віконних конструкцій?"]
[null,null,null,null,"Рішення по влаштуванню монтажного з’єднувального шва, його паро-, тепло- та гідроізоляцію розроблені та наведені на кресленнях?"]
[null,null,null,null,"Для заходу складено специфікацію відомостей робіт та елементів  заповнення віконних та дверних балконних прорізів?"]
[null,null,null,null,"На кресленнях фасадів та/або поверхових планах віконні та дверні балконні конструкції відмічені, відповідно до специфікації елементів заповнення дверних прорізів?"]
[null,null,null,null,"Локальний кошторис щодо Заходу «Заміна або ремонт блоків віконних або/та блоків балконних дверних у приміщеннях (місцях) загального користування будівлі» складено окремо, а його назва відповідає назві Заходу, ключові обсяги робіт в специфікації заходу співпадать з кошторисом?"]
[null,null,null,null,"Примітка:\n- Короткий опис заходу із зазначенням технічного рішення, основних характеристик обладнання, тощо."]
[]
[null,null,null,null,"Захід \"Комплекс робіт із теплоізоляції та улаштування зовнішніх стін нижче рівня грунту\", передбачає?"]
[null,null,null,null,"Характеристики теплоізоляційних матеріалів, що застосовуються для утеплення заглиблених конструкцій вказані в окремій таблиці на кресленнях марки АР/АБ або в ПЗ, а їх показникі відповідають вимогам Програми?"]
[null,null,null,null,"Розроблено та наведено на кресленнях АБ чи АР вузол утеплення заглиблених констуркцій зовнішніх стін?"]
[null,null,null,null,"Захід виділено окремою відомостю робіт (розділом в відомості), зазначено марки утеплювачів, компонентів системи утеплення  та чи відповідає обсяг ключових матеріалів та робіт в специфікації - кресленням?"]
[null,null,null,null,"Локальний кошторис щодо Заходу «Комплекс робіт із теплоізоляції та улаштування зовнішніх стін нижче рівня грунту» складено окремо, а його назва відповідає назві Заходу, ключові обсяги робіт в специфікації заходу співпадать з кошторисом?"]
[null,null,null,null,"Примітка:\n- Короткий опис заходу із зазначенням технічного рішення, основних характеристик обладнання, тощо."]
[]
[null,null,null,null,"Захід \"Заміна або ремонт блоків віконних та блоків балконних дверних у квартирах, утеплення і скління наявних балконів і лоджій\", передбачає?"]
[null,null,null,null,"В складі проектної документації відображено приведений опір віконних конструкцій, що розмежовують опалювальний та неопалювальний об'єми, які підлягають встановленню/заміні?"]
[null,null,null,null,"В описовій частині («ПЗ» чи «АБ») зазначено тип (профіль, склопакет) та виробника віконних конструкцій?"]
[null,null,null,null,"Рішення по влаштуванню монтажного з’єднувального шва, його паро-, тепло- та гідроізоляцію розроблені та наведені на кресленнях?"]
[null,null,null,null,"Для заходу складено специфікацію відомостей робіт та елементів  заповнення віконних, дверних балконних прорізів та конструкцій скління балконів та/або лоджій ?"]
[null,null,null,null,"На кресленнях фасадів та/або поверхових планах відмічені віконні, дверні балконні конструкції балкони та лоджії, відповідно до специфікації елементів заповнення дверних прорізів?"]
[null,null,null,null,"Локальний кошторис щодо Заходу «Заміна або ремонт блоків віконних та блоків балконних дверних у квартирах, утеплення і скління наявних балконів і лоджій» складено окремо, а його назва відповідає назві Заходу, ключові обсяги робіт в специфікації заходу співпадать з кошторисом?"]
[null,null,null,null,"Примітка:\n- Короткий опис заходу із зазначенням технічного рішення, основних характеристик обладнання, тощо."]
[]
[null,null,null,null,"Захід \"Модернізація системи гарячого водопостачання\", передбачає?"]
[null,null,null,null,"\n- Короткий опис заходу із зазначенням технічного рішення, основних характеристик обладнання, тощо."]
[null,null,null,null,"Захід виділено окремою відомостю робіт (розділом в відомості), зазначено основне обладнання, фасонни та комплектуючі та чи відповідає обсяг ключових матеріалів та робіт в специфікації - кресленням?"]
[null,null,null,null,"Локальний кошторис щодо Заходу «Модернізація системи гарячого водопостачання» складено окремо, а його назва відповідає назві Заходу, ключові обсяги робіт в специфікації заходу співпадать з кошторисом?"]
[]
[null,null,null,null,"Захід \"Заміна або/та теплоізоляція трубопроводів системи опалення або/та приладів водяної системи опалення у приміщеннях (місцях) загального користування будівлі\", передбачає?"]
[null,null,null,null,"В якості опалювальних приладів  застосовані сталеві, алюмінієві та/або біметалеві радіатори?"]
[null,null,null,null,"Проектними рішеннями передбачено відображення на кресленнях типу/типорозміру опалювальних приладів?"]
[null,null,null,null,"На кресленнях наведено вузли обв'язки опалювальних приладів?"]
[null,null,null,null,"У випадку заміни або та теплоізоляції трубопроводів системи опалення в складі заходу наведено аксонометричні креслення з позначенням розводки трубопроводів та приладів, що замінюються?"]
[null,null,null,null,"Захід виділено окремою відомостю робіт (розділом в відомості), зазначено основне обладнання, фасони та комплектуючі? Чи відповідає обсяг ключових матеріалів та робіт в специфікації - кресленням?"]
[null,null,null,null,"Локальний кошторис щодо Заходу «Заміна або/та теплоізоляція трубопроводів системи опалення або/та приладів водяної системи опалення у приміщеннях (місцях) загального користування будівлі» складено окремо, а його назва відповідає назві Заходу, ключові обсяги робіт в специфікації заходу співпадать з кошторисом?"]
[null,null,null,null,"Примітка:\n- Короткий опис заходу із зазначенням технічного рішення, основних характеристик обладнання, тощо."]
[]
[null,null,null,null,"Захід \"Заміна або/та теплоізоляція трубопроводів системи опалення або/та приладів водяної системи опалення у квартирах\", передбачає?"]
[null,null,null,null,"В якості опалювальних приладів  застосовані сталеві, алюмінієві або біметалеві радіатори ?"]
[null,null,null,null,"Проектними рішеннями передбачено відображення на кресленнях типу/типорозміру опалювальних приладів?"]
[null,null,null,null,"На кресленнях наведено вузли обв'язки опалювальних приладів?"]
[null,null,null,null,"У випадку заміни або та теплоізоляції трубопроводів системи опалення в складі заходу наведено аксонометричні креслення з позначенням розводки трубопроводів та приладів, що замінюються?"]
[null,null,null,null,"Захід виділено окремою відомостю робіт (розділом в відомості), зазначено основне обладнання, фасони та комплектуючі? Чи відповідає обсяг ключових матеріалів та робіт в специфікації - кресленням?"]
[null,null,null,null,"Локальний кошторис щодо Заходу «Заміна або/та теплоізоляція трубопроводів системи опалення або/та приладів водяної системи опалення у квартирах» складено окремо, а його назва відповідає назві Заходу, ключові обсяги робіт в специфікації заходу співпадать з кошторисом?"]
[null,null,null,null,"Примітка:\n- Короткий опис заходу із зазначенням технічного рішення, основних характеристик обладнання, тощо."]
[]
[null,null,null,null,"Захід \"Встановлення вузлів розподільного обліку теплової енергії на потреби опалення або/та приладів - розподілювачів теплової енергії у квартирах\", передбачає?"]
[null,null,null,null,"Проектними рішеннями передбачено встановлення приладів – розподілювачів на опалювальні прилади, які оснащені автоматичними регуляторами температури?"]
[null,null,null,null,"Проектними рішеннями передбачено облаштування приладами-розподілювачами більше 50% опалювальних приладів (крім розташованих у приміщеннях (місцях) загального користування багатоквартирних будинків)?"]
[null,null,null,null,"Проектними рішеннями передбачено відображення на кресленнях місця встановлення приладів-розподілювачів (їх розміщення на опалювальних приладах та підключення) та концентраторів сигналу та схему їх розміщення в будинку?"]
[null,null,null,null,"Захід виділено окремою відомостю робіт (розділом в відомості), зазначено основне обладнання та комплектуючі? Чи відповідає обсяг ключових матеріалів та робіт в специфікації - кресленням?"]
[null,null,null,null,"Локальний кошторис щодо Заходу «Встановлення вузлів розподільного обліку теплової енергії на потреби опалення або/та приладів - розподілювачів теплової енергії у квартирах» складено окремо, а його назва відповідає назві Заходу, ключові обсяги робіт в специфікації заходу співпадать з кошторисом?"]
[null,null,null,null,"Примітка:\n- Короткий опис заходу із зазначенням технічного рішення, основних характеристик обладнання, тощо."]
[]
[null,null,null,null,"Захід \"Встановлення автоматичних регуляторів температури повітря у приміщеннях на опалювальних приладах водяної системи опалення у квартирах або/та у приміщеннях (місцях) загального користування будівлі\", передбачає?"]
[null,null,null,null,"Проектними рішеннями на кресленнях передбачено\nвідображення  марки та типорозміру терморегуляторів?"]
[null,null,null,null,"Проектними рішеннями на кресленнях наведено вузол обв'язки опалювальних приладів?"]
[null,null,null,null,"Підключення терморегуляторів до опалювальних приладів в однотрубній системі опалення виконано через \"байпас\"?"]
[null,null,null,null,"Захід виділено окремою відомостю робіт (розділом в відомості), зазначено основне обладнання та комплектуючі? Чи відповідає обсяг ключових матеріалів та робіт в специфікації - кресленням?"]
[null,null,null,null,"Локальний кошторис щодо Заходу «Встановлення автоматичних регуляторів температури повітря у приміщеннях на опалювальних приладах водяної системи опалення у квартирах або/та у приміщеннях (місцях) загального користування будівлі» складено окремо, а його назва відповідає назві Заходу, ключові обсяги робіт в специфікації заходу співпадать з кошторисом?"]
[null,null,null,null,"Примітка:\n- Короткий опис заходу із зазначенням технічного рішення, основних характеристик обладнання, тощо."]
[]
[null,null,null,null,"Захід \"Комплекс робіт із модернізації та облаштування системи освітлення у приміщеннях (місцях) загального користування будівлі\", передбачає?"]
[null,null,null,null,"Запроектовані світлодіодні світильники та/або світлодіодні лампи?"]
[null,null,null,null,"Проектними рішеннями на кресленнях передбачено\nвідображено  місця встановлення та підключення світлотехнічної продукції?"]
[null,null,null,null,"Захід виділено окремою відомостю робіт (розділом в відомості), зазначено основне обладнання та комплектуючі? Чи відповідає обсяг ключових матеріалів та робіт в специфікації - кресленням?"]
[null,null,null,null,"Локальний кошторис щодо Заходу «Комплекс робіт із модернізації та облаштування системи освітлення у приміщеннях (місцях) загального користування будівлі» складено окремо, а його назва відповідає назві Заходу, ключові обсяги робіт в специфікації заходу співпадать з кошторисом?"]
[null,null,null,null,"Примітка:\n- Короткий опис заходу із зазначенням технічного рішення, основних характеристик обладнання, тощо."]
[]
[null,null,null,null,"Захід \"Комплекс робіт із модернізації та облаштування системи вентиляції з встановленням рекуператорів\", передбачає?"]
[null,null,null,null,"Проектом передбачено застосування рекупераційного обладнання з коефіцієнтом рекуперації більше, ніж 60%?"]
[null,null,null,null,"Проектними рішеннями на кресленнях передбачено\nвідображено  місця встановлення та підключення рекуператорів?"]
[null,null,null,null,"Захід виділено окремою відомостю робіт (розділом в відомості), зазначено основне обладнання та комплектуючі? Чи відповідає обсяг ключових матеріалів та робіт в специфікації - кресленням?"]
[null,null,null,null,"Локальний кошторис щодо Заходу «Комплекс робіт із модернізації та облаштування системи вентиляції з встановленням рекуператорів» складено окремо, а його назва відповідає назві Заходу, ключові обсяги робіт в специфікації заходу співпадать з кошторисом?"]
[null,null,null,null,"Примітка:\n- Короткий опис заходу із зазначенням технічного рішення, основних характеристик обладнання, тощо."]
[]
[null,null,null,null,"Захід \"Інші типи модернізації системи внутрішнього теплопостачання\", передбачає?"]
[null,null,null,null,"\n- Короткий опис заходу із зазначенням технічного рішення, основних характеристик обладнання, тощо."]
[null,null,null,null,"Захід виділено окремою відомостю робіт (розділом в відомості), зазначено основне обладнання та комплектуючі та чи відповідає обсяг ключових матеріалів та робіт в специфікації - кресленням?"]
[null,null,null,null,"Локальний кошторис щодо Заходу «Інші типи модернізації системи внутрішнього теплопостачання» складено окремо, а його назва відповідає назві Заходу, ключові обсяги робіт в специфікації заходу співпадать з кошторисом?"]
[]
[null,null,null,null,"3.ЗАГАЛЬНІ ВИМОГИ ДОТРИМАНІ?"]
[null,null,null,null,"3.1 Експертиза проведена експертною організацією, що відповідає визначеним критеріям відповідно до Наказу Мінрегіону від 15 серпня 2017 року №204? "]
[null,null,null,null,"3.2 Звіт (висновок) експертної організації не містить інформацію про допущені помилки та/або недотримання технічних вимог?"]
[null,null,null,null,"3.3 Чи відповідає назва проекту в експертному висновку та в проектній документації один одному?"]
[null,null,null,null,"3.4 Чи співпадають суми, наведені в Зведеному кошторисному розрахунку, експертному висновку та електронній версії кошторисної документації, один одному?"]
[]
[null,null,null,null,"4. ФІНАНСОВИЙ ПЛАН РЕАЛІЗАЦІЇ ПРОЕКТУ"]
[null,null,null,null,"№",null,null,"Стаття витрат",null,null,null,null,null,null,null,null,null,null,null,null,null,null,null,"Оцінка вартості, грн. з ПДВ",null,null,null,null,null,null,"Розмір відшкодування за умовами Програми підтримки енергомодернізації\nбагатоквартирних будинків\n«ЕНЕРГОДІМ», %"]
[]
[]
[]
[]
[null,null,null,null,1,null,null,2,null,null,null,null,null,null,null,null,null,null,null,null,null,null,null,3,null,null,null,null,null,null,4]
[]
[null,null,null,null,"8.1",null,null,"Проведення енергоаудиту",null,null,null,null,null,null,null,null,null,null,null,null,null,null,null,null,null,null,null,null,null,null,70]
[]
[null,null,null,null,"8.2",null,null,"Розробка проектної документації та її експертиза",null,null,null,null,null,null,null,null,null,null,null,null,null,null,null,null,null,null,null,null,null,null,70]
[null,null,null,null,"8.3",null,null,"Будівельні роботи",null,null,null,null,null,null,null,null,null,null,null,null,null,null,null,null,null,null,null,null,null,null,{"$f":"IF(AZ2=TRUE,\"40*\",\"50*\")","v":"50*"}]
[]
[null,null,null,null,"8.4",null,null,"Технічний та авторський нагляд",null,null,null,null,null,null,null,null,null,null,null,null,null,null,null,null,null,null,null,null,null,null,70]
[]
[null,null,null,null,"8.5",null,null,"Сертифікація енергоефективності після реалізації проекту ",null,null,null,null,null,null,null,null,null,null,null,null,null,null,null,null,null,null,null,null,null,null,70]
[]
[null,null,null,null,"8.6",null,null,"Обстеження інженерних систем будівлі, на яких здійснено заходи із забезпечення (підвищення рівня) енергетичної ефективності",null,null,null,null,null,null,null,null,null,null,null,null,null,null,null,null,null,null,null,null,null,null,70]
[]
[]
[null,null,null,null,"8.7",null,null,"Всього",null,null,null,null,null,null,null,null,null,null,null,null,null,null,null,{"$f":"X430+X432+X433+X435+X437+X439","v":0},null,null,null,null,null,null,"Х"]
[]
[null,null,null,null,{"$f":"IF(AZ2=TRUE,\"* Для перших 500 заявок розмір гранту становить 60%.\",\"* Для перших 500 заявок розмір гранту становить 70%.\")","v":"* Для перших 500 заявок розмір гранту становить 70%."}]
[]
[]
[null,null,null,null,"Інженер - проектувальник:"]
[]
[null,null,null,null,"(ПІБ, кваліфікаційний сертифікат інженера-проектувальника)",null,null,null,null,null,null,null,null,null,null,null,null,null,null,null,null,null,null,null,null,null,null,null,null,null,null,null,"   (підпис) (МП)"]
[]
[]
[]
[null,null,null,null,"Голова правління ОСББ:"]
[]
[null,null,null,null,"(ПІБ)",null,null,null,null,null,null,null,null,null,null,null,null,null,null,null,null,null,null,null,null,null,null,null,null,null,null,null,"   (підпис) (МП)"]